bitfinex/quotes_BTCUSD_20250206
["timestamp","ask_amount","ask_price","bid_price","bid_amount"]
[1738881187171,0.155279,96600.0,96599.0,0.01303529]
[1738881187422,0.10250365,96607.0,96583.0,0.0001069]
[1738881187675,0.155305,96584.0,96583.0,0.0001069]
[1738881187906,0.155305,96584.0,96583.0,0.01306956]
[1738881188134,0.155305,96584.0,96583.0,0.0001069]
[1738881188830,0.33330865,96584.0,96583.0,0.0001069]
[1738881189064,0.48330865,96584.0,96583.0,0.0001069]
[1738881189331,0.50630865,96584.0,96583.0,0.0001069]
[1738881189839,0.155364,96547.0,96536.0,0.155382]
[1738881190084,0.155364,96547.0,96535.0,0.207176]
[1738881190314,0.155364,96547.0,96539.0,0.155376]
[1738881190562,0.155364,96547.0,96540.0,0.155375]
[1738881190814,0.155366,96546.0,96537.0,0.207173]
[1738881191053,0.155366,96546.0,96533.0,0.10578544]
[1738881191054,0.207153,96547.0,96533.0,0.10578544]
[1738881191254,0.15,96557.0,96537.0,0.000462]
[1738881191429,0.15537,96544.0,96537.0,0.155842]
[1738881191948,0.15537,96544.0,96540.0,0.003]
[1738881192438,0.1993,96569.0,96540.0,0.003]
[1738881192674,0.35711,96567.0,96540.0,0.003]
[1738881192901,0.155368,96545.0,96540.0,0.003]
[1738881193405,0.15,96555.0,96547.0,0.155363]
[1738881193638,0.15,96555.0,96541.0,0.207165]
[1738881193852,0.155355,96553.0,96545.0,0.155366]
[1738881194070,0.10250365,96566.0,96559.0,0.155345]
[1738881194298,0.10250365,96566.0,96545.0,0.00103565]
[1738881194528,0.001,96555.0,96554.0,0.155353]
[1738881194953,0.10250365,96566.0,96558.0,0.207127]
[1738881195178,0.10250365,96566.0,96540.0,0.1299795]
[1738881195429,0.10250365,96566.0,96561.0,0.155342]
[1738881195650,0.10250365,96566.0,96540.0,0.1299795]
[1738881195923,0.10250365,96566.0,96521.0,0.3241]
[1738881195924,0.155379,96538.0,96521.0,0.3241]
[1738881196154,0.155379,96538.0,96521.0,0.08301166]
[1738881196378,0.40788265,96538.0,96516.0,0.00022407]
[1738881197502,0.43088265,96538.0,96516.0,0.00022407]
[1738881197871,0.43888265,96538.0,96537.0,0.001462]
[1738881198855,0.155422,96511.0,96510.0,0.06625298]
[1738881199098,0.155422,96511.0,96510.0,0.06639122]
[1738881199327,0.155422,96511.0,96510.0,0.00013824]
[1738881200905,0.155422,96511.0,96510.0,0.00313824]
[1738881202766,0.155422,96511.0,96510.0,0.00013824]
[1738881203103,0.155422,96511.0,96510.0,0.00113824]
[1738881208056,0.155422,96511.0,96510.0,0.0002514]
[1738881208613,0.155422,96511.0,96510.0,0.0003583]
[1738881208844,0.15,96527.0,96510.0,0.0003583]
[1738881209124,0.15,96524.0,96517.0,0.155412]
[1738881209261,0.155401,96524.0,96517.0,0.155412]
[1738881209483,0.15,96528.0,96517.0,0.155412]
[1738881209684,0.1299795,96550.0,96510.0,0.0003583]
[1738881209891,0.002,96527.0,96512.0,0.207228]
[1738881210092,0.007,96527.0,96510.0,0.0001069]
[1738881210295,0.002,96527.0,96511.0,0.20723]
[1738881210499,0.15,96536.0,96510.0,0.0001069]
[1738881210717,0.158395,96528.0,96510.0,0.0001069]
[1738881210909,0.155402,96524.0,96517.0,0.155411]
[1738881211107,0.207195,96527.0,96518.0,0.15541]
[1738881211330,0.155403,96523.0,96516.0,0.155413]
[1738881211551,0.155403,96523.0,96517.0,0.155412]
[1738881211757,0.207198,96526.0,96515.0,0.20722]
[1738881211965,0.155401,96524.0,96518.0,0.155411]
[1738881212837,0.209196,96527.0,96511.0,0.155422]
[1738881213054,0.155409,96520.0,96513.0,0.155419]
[1738881213256,0.207207,96522.0,96515.0,0.155415]
[1738881213848,0.001,96524.0,96512.0,0.207226]
[1738881214049,0.001,96524.0,96510.0,0.01275824]
[1738881214319,0.001,96524.0,96512.0,0.207228]
[1738881214561,0.15,96532.0,96523.0,0.155403]
[1738881214562,0.155392,96530.0,96523.0,0.155403]
[1738881214764,0.08301166,96548.0,96529.0,0.155393]
[1738881214940,0.155377,96539.0,96533.0,0.155387]
[1738881215142,0.15,96546.0,96530.0,0.207187]
[1738881215342,0.0818,96562.0,96520.0,0.1299795]
[1738881215545,0.10250365,96561.0,96521.0,0.10353945]
[1738881215990,0.155344,96560.0,96554.0,0.155353]
[1738881216463,0.155341,96562.0,96556.0,0.15535]
[1738881216611,0.15533,96569.0,96540.0,0.20820367]
[1738881216821,0.002,96561.0,96560.0,0.155343]
[1738881217225,0.00013852,96561.0,96560.0,0.155343]
[1738881217399,0.00013852,96561.0,96560.0,0.15637848]
[1738881218217,0.00013852,96561.0,96560.0,0.16602749]
[1738881219220,0.00013852,96561.0,96560.0,0.16702749]
[1738881219422,0.00013852,96561.0,96560.0,0.18793541]
[1738881220065,0.00013852,96561.0,96560.0,0.19193541]
[1738881220425,0.00036302,96561.0,96560.0,0.19193541]
[1738881220826,0.00036302,96561.0,96560.0,0.3987723]
[1738881221147,0.0002245,96583.0,96582.0,0.155308]
[1738881221347,0.00068649,96583.0,96582.0,0.155308]
[1738881221684,0.00068649,96583.0,96582.0,0.15634321]
[1738881222689,0.00068649,96583.0,96582.0,0.25884686]
[1738881222935,0.00068649,96583.0,96582.0,0.2958857]
[1738881223111,0.00068649,96583.0,96582.0,0.52729987]
[1738881223316,0.00068649,96583.0,96582.0,0.68529987]
[1738881223516,0.00068649,96583.0,96582.0,0.69294888]
[1738881223924,0.00068649,96583.0,96582.0,0.69494888]
[1738881224918,0.00068649,96583.0,96582.0,0.68694888]
[1738881225291,0.00022428,96609.0,96583.0,0.173]
[1738881225484,0.00036282,96609.0,96608.0,0.155266]
[1738881225818,0.00036282,96609.0,96608.0,0.15630095]
[1738881226840,0.00036282,96609.0,96608.0,0.2818046]
[1738881227050,0.00036282,96609.0,96608.0,0.155266]
[1738881227256,0.00036282,96609.0,96608.0,0.15630091]
[1738881227453,0.00036282,96609.0,96608.0,0.16910237]
[1738881227762,0.00036282,96609.0,96608.0,0.27160602]
[1738881228003,0.00036282,96609.0,96608.0,0.27057111]
[1738881229100,0.00036282,96609.0,96608.0,0.27857111]
[1738881229428,0.00036282,96609.0,96608.0,0.27157111]
[1738881229656,0.00036282,96609.0,96608.0,0.27657111]
[1738881229784,0.00036282,96609.0,96608.0,0.27757111]
[1738881230871,0.00036282,96609.0,96608.0,0.17506746]
[1738881231052,0.00036282,96609.0,96608.0,0.01980146]
[1738881231260,0.15562782,96609.0,96608.0,0.007]
[1738881231668,0.15562782,96609.0,96608.0,0.001]
[1738881231841,0.00036282,96609.0,96583.0,0.02022349]
[1738881232034,0.15562782,96609.0,96608.0,0.001]
[1738881232233,0.30562782,96609.0,96608.0,0.001]
[1738881232546,0.30562782,96609.0,96583.0,0.0001068]
[1738881232547,0.155305,96584.0,96583.0,0.0001068]
[1738881233653,0.25780865,96584.0,96583.0,0.0001068]
[1738881236303,0.25880865,96584.0,96583.0,0.0001068]
[1738881236692,0.25780865,96584.0,96583.0,0.0001068]
[1738881237182,0.25880865,96584.0,96583.0,0.0001068]
[1738881237501,0.156305,96584.0,96583.0,0.0001068]
[1738881239490,0.001,96584.0,96583.0,0.0001068]
[1738881239847,0.156305,96584.0,96583.0,0.0001068]
[1738881240050,0.001,96584.0,96583.0,0.0001068]
[1738881240499,0.156305,96584.0,96583.0,0.0001068]
[1738881241198,0.001,96584.0,96583.0,0.0001068]
[1738881241410,0.001,96584.0,96583.0,0.1554128]
[1738881242384,0.15,96599.0,96583.0,0.0001068]
[1738881242589,0.155285,96597.0,96590.0,0.155294]
[1738881242925,0.40778565,96599.0,96593.0,0.15529]
[1738881243127,0.207022,96608.0,96583.0,0.0011068]
[1738881243355,0.155273,96604.0,96585.0,0.207071]
[1738881243571,0.00036282,96609.0,96600.0,0.155278]
[1738881243720,0.00036282,96609.0,96586.0,0.00103519]
[1738881244136,0.002,96599.0,96598.0,0.155282]
[1738881244334,0.002,96599.0,96598.0,0.15631704]
[1738881244513,0.002,96599.0,96598.0,0.27958798]
[1738881244727,0.002,96599.0,96598.0,0.27855294]
[1738881245314,0.00036282,96609.0,96598.0,0.12327094]
[1738881245521,0.00036282,96609.0,96608.0,0.155266]
[1738881245720,0.00236282,96609.0,96608.0,0.155266]
[1738881245928,0.00236282,96609.0,96608.0,0.15630098]
[1738881246139,0.00036282,96609.0,96608.0,0.155266]
[1738881246338,0.00036282,96609.0,96608.0,0.25880463]
[1738881246544,0.00136282,96609.0,96608.0,0.25776965]
[1738881246942,0.00036282,96609.0,96608.0,0.26176965]
[1738881247340,0.00036282,96609.0,96608.0,0.26276965]
[1738881247563,0.00036282,96609.0,96608.0,0.3272344]
[1738881248181,0.00036282,96609.0,96608.0,0.3232344]
[1738881248417,0.00036282,96609.0,96608.0,0.33387974]
[1738881248610,0.00036282,96609.0,96608.0,0.33287974]
[1738881248806,0.00036282,96609.0,96608.0,0.33387974]
[1738881249009,0.00036282,96609.0,96608.0,0.33787974]
[1738881249526,0.00036282,96609.0,96608.0,0.27341499]
[1738881250385,0.00036282,96609.0,96608.0,0.3055471]
[1738881251403,0.00036282,96609.0,96608.0,0.31832421]
[1738881254519,0.00036282,96609.0,96608.0,0.34132421]
[1738881261604,0.00036282,96609.0,96608.0,0.66542421]
[1738881263714,0.00036282,96609.0,96608.0,0.81542421]
[1738881265068,0.00036282,96609.0,96608.0,0.85882421]
[1738881265217,0.00036282,96609.0,96608.0,0.86682421]
[1738881265621,0.00036282,96609.0,96608.0,0.85982421]
[1738881265961,0.00036282,96609.0,96608.0,0.86882421]
[1738881266110,0.00036282,96609.0,96608.0,0.93582145]
[1738881266333,0.155204,96647.0,96616.0,0.155253]
[1738881266533,0.00027064,96617.0,96616.0,0.2587914]
[1738881266769,0.00027064,96617.0,96616.0,0.25775665]
[1738881267413,0.00027064,96617.0,96616.0,0.26740199]
[1738881267573,0.00027064,96617.0,96616.0,0.29040199]
[1738881267777,0.00027064,96617.0,96616.0,0.38154569]
[1738881268478,0.00027064,96617.0,96616.0,0.29840199]
[1738881269597,0.00027064,96617.0,96616.0,0.30040199]
[1738881270402,0.00027064,96617.0,96616.0,0.29840199]
[1738881270803,0.00027064,96617.0,96616.0,0.28875665]
[1738881271191,0.00027064,96617.0,96616.0,0.29842299]
[1738881271614,0.00027064,96617.0,96616.0,0.30042299]
[1738881271989,0.00027064,96617.0,96616.0,0.29842299]
[1738881272403,0.00027064,96617.0,96616.0,0.30042299]
[1738881272608,0.00027064,96617.0,96616.0,0.31295125]
[1738881272810,0.00027064,96617.0,96616.0,0.31095125]
[1738881273122,0.00027064,96617.0,96616.0,0.32095125]
[1738881274279,0.00027064,96617.0,96616.0,0.35317694]
[1738881275072,0.00022428,96658.0,96631.0,0.155229]
[1738881275271,0.00015295,96632.0,96631.0,0.25773265]
[1738881275935,0.00015295,96632.0,96631.0,0.26739899]
[1738881277779,0.00015295,96632.0,96631.0,0.27039899]
[1738881277988,0.00015295,96632.0,96631.0,0.35653269]
[1738881278286,0.00015295,96632.0,96631.0,0.35953269]
[1738881278512,0.00015295,96632.0,96631.0,0.39182313]
[1738881280453,0.00015295,96632.0,96631.0,0.41482313]
[1738881280581,0.00015295,96632.0,96631.0,0.43546954]
[1738881280922,0.00015295,96632.0,96631.0,0.44780819]
[1738881288450,0.00015295,96632.0,96631.0,0.44480819]
[1738881288648,0.00015295,96632.0,96631.0,0.15679908]
[1738881288859,0.00015295,96632.0,96631.0,0.12450864]
[1738881289062,0.00015295,96632.0,96631.0,0.27973764]
[1738881290052,0.00015295,96632.0,96631.0,0.28773764]
[1738881290256,0.00015295,96632.0,96631.0,0.27973764]
[1738881290407,0.00015295,96632.0,96631.0,0.31045216]
[1738881290612,0.00015295,96632.0,96631.0,0.31745216]
[1738881290980,0.00015295,96632.0,96631.0,0.31545216]
[1738881291204,0.00015295,96632.0,96631.0,0.31645216]
[1738881291406,0.00015295,96632.0,96631.0,0.13050864]
[1738881291637,0.00015295,96632.0,96631.0,0.28677234]
[1738881291820,0.00015295,96632.0,96631.0,0.28573764]
[1738881292881,0.00015295,96632.0,96631.0,0.30512387]
[1738881293089,0.00015295,96632.0,96631.0,0.14989487]
[1738881293290,0.00015295,96632.0,96631.0,0.30512387]
[1738881294198,0.00015295,96632.0,96631.0,0.14989487]
[1738881294356,0.00015295,96632.0,96631.0,0.30512387]
[1738881297000,0.00015295,96632.0,96631.0,0.3791203]
[1738881298120,0.00015295,96632.0,96631.0,0.30512387]
[1738881298993,0.00015295,96632.0,96631.0,0.33615543]
[1738881299962,0.00015295,96632.0,96631.0,0.36847283]
[1738881300608,0.00015295,96632.0,96631.0,0.39147283]
[1738881303046,0.00015295,96632.0,96631.0,0.36044127]
[1738881303223,0.00015295,96632.0,96631.0,0.46066804]
[1738881311943,0.00015295,96632.0,96631.0,0.45566804]
[1738881313057,0.00015295,96632.0,96631.0,0.35544127]
[1738881317868,0.00015295,96632.0,96631.0,0.17721227]
[1738881318224,0.00015295,96632.0,96631.0,0.14489487]
[1738881318434,0.00015295,96632.0,96631.0,0.04739122]
[1738881318636,0.15538095,96632.0,96631.0,0.03505257]
[1738881319268,0.30538095,96632.0,96631.0,0.03505257]
[1738881319471,0.38548095,96632.0,96631.0,0.02505257]
[1738881319673,0.4879846,96632.0,96631.0,0.00566634]
[1738881319868,0.5334846,96632.0,96631.0,0.00566634]
[1738881320068,0.43195,96618.0,96610.0,0.0001067]
[1738881320297,0.53445365,96618.0,96610.0,0.0001067]
[1738881321084,0.54692671,96618.0,96610.0,0.0001067]
[1738881321396,0.426861,96611.0,96610.0,0.0001067]
[1738881321620,0.52936465,96611.0,96610.0,0.0001067]
[1738881322328,0.20703,96605.0,96596.0,0.09289601]
[1738881322485,0.383484,96597.0,96596.0,0.09289601]
[1738881322685,0.48598765,96597.0,96596.0,0.09289601]
[1738881323461,0.48598765,96597.0,96596.0,0.04289601]
[1738881323889,0.15,96584.0,96571.0,0.06411846]
[1738881324016,0.305324,96572.0,96571.0,0.06458045]
[1738881324213,0.40782765,96572.0,96571.0,0.00046199]
[1738881324426,0.305324,96572.0,96571.0,0.00046199]
[1738881324825,0.40782765,96572.0,96571.0,0.00046199]
[1738881325231,0.40782765,96572.0,96571.0,0.00446199]
[1738881326393,0.40882765,96572.0,96571.0,0.00446199]
[1738881326613,0.40882765,96572.0,96571.0,0.00046199]
[1738881326813,0.40882765,96572.0,96571.0,0.00146199]
[1738881327109,0.40882765,96572.0,96571.0,0.00046199]
[1738881327962,0.48712765,96572.0,96571.0,0.00046199]
[1738881328546,0.50852765,96572.0,96571.0,0.00046199]
[1738881328943,0.50852765,96572.0,96543.0,0.06447365]
[1738881328944,0.155369,96544.0,96543.0,0.06447365]
[1738881329087,0.155367,96546.0,96543.0,0.06451979]
[1738881329497,0.155368,96545.0,96543.0,4.614e-05]
[1738881329740,0.155364,96547.0,96543.0,0.0120617]
[1738881329964,0.155364,96547.0,96543.0,0.0121684]
[1738881330128,0.155364,96547.0,96543.0,0.00015284]
[1738881330321,0.155362,96549.0,96543.0,0.00915284]
[1738881330496,0.155362,96549.0,96543.0,0.00315284]
[1738881330702,0.155362,96549.0,96543.0,0.01215284]
[1738881330997,0.25250365,96568.0,96543.0,0.01215284]
[1738881331244,0.207112,96566.0,96543.0,0.00315284]
[1738881331457,0.155365,96547.0,96543.0,0.00315284]
[1738881331671,0.15,96574.0,96543.0,0.01115284]
[1738881332006,0.155331,96568.0,96550.0,0.12978078]
[1738881332217,0.15,96571.0,96561.0,0.155341]
[1738881332218,0.155327,96570.0,96561.0,0.155341]
[1738881332416,0.00545354,96567.0,96559.0,0.155344]
[1738881332702,0.00541795,96566.0,96556.0,0.207133]
[1738881332940,0.00541795,96566.0,96550.0,0.12978078]
[1738881333151,0.00541795,96566.0,96565.0,0.155335]
[1738881333356,0.155294,96591.0,96582.0,0.155307]
[1738881333564,0.155294,96591.0,96561.0,0.0825]
[1738881333565,0.01,96600.0,96577.0,0.00103539]
[1738881333780,0.01,96600.0,96570.0,0.12978078]
[1738881333781,0.01,96600.0,96591.0,0.155293]
[1738881334028,0.0826,96614.0,96582.0,0.0481]
[1738881334213,0.15526,96612.0,96603.0,0.155274]
[1738881334420,0.004,96591.0,96590.0,0.12978078]
[1738881334637,0.004,96591.0,96590.0,0.25779865]
[1738881334847,0.0004616,96614.0,96594.0,0.207051]
[1738881335015,0.0004616,96614.0,96612.0,0.155259]
[1738881335682,0.0004616,96614.0,96613.0,0.15060365]
[1738881336405,0.0004616,96614.0,96613.0,0.19412977]
[1738881336693,0.0004616,96614.0,96613.0,0.19516449]
[1738881337257,0.0004616,96614.0,96613.0,0.20116449]
[1738881337464,0.0001068,96632.0,96631.0,0.155229]
[1738881337663,0.0001068,96632.0,96631.0,0.25773265]
[1738881340302,0.0001068,96632.0,96631.0,0.26073265]
[1738881340505,0.0001068,96632.0,96631.0,0.25773265]
[1738881340910,0.0001068,96632.0,96631.0,0.25973265]
[1738881341357,0.0001068,96632.0,96631.0,0.10450365]
[1738881341757,0.0001068,96632.0,96631.0,0.002]
[1738881342649,0.0001068,96632.0,96630.0,0.15523]
[1738881342831,0.0001068,96632.0,96631.0,0.002]
[1738881343246,0.0001068,96632.0,96630.0,0.26980051]
[1738881343450,0.0001068,96632.0,96631.0,0.002]
[1738881343789,0.0001068,96632.0,96630.0,0.26980051]
[1738881343988,0.0001068,96632.0,96631.0,0.002]
[1738881344404,0.0001068,96632.0,96630.0,0.26980051]
[1738881345170,0.0001068,96632.0,96630.0,0.26979951]
[1738881345596,0.0001068,96632.0,96631.0,0.002]
[1738881346016,0.0001068,96632.0,96630.0,0.26979951]
[1738881346214,0.0001068,96632.0,96630.0,0.27179951]
[1738881346554,0.0001068,96632.0,96630.0,0.26979951]
[1738881346758,0.0001068,96632.0,96631.0,0.002]
[1738881347020,0.0001068,96632.0,96631.0,0.157229]
[1738881347561,0.0001068,96632.0,96631.0,0.155229]
[1738881348794,0.0001068,96632.0,96631.0,0.1562637]
[1738881350027,0.0001068,96632.0,96631.0,0.1582637]
[1738881350228,0.0001068,96632.0,96631.0,0.157229]
[1738881350868,0.0001068,96632.0,96631.0,0.1562637]
[1738881351487,0.0001068,96632.0,96631.0,0.155229]
[1738881352106,0.0001068,96632.0,96631.0,0.157229]
[1738881352707,0.0001068,96632.0,96631.0,0.15826372]
[1738881354074,0.0001068,96632.0,96631.0,0.157229]
[1738881354414,0.0001068,96632.0,96631.0,0.155229]
[1738881354789,0.00487449,96632.0,96631.0,0.155229]
[1738881355859,0.00487449,96632.0,96631.0,0.003]
[1738881356033,0.0001068,96632.0,96631.0,0.155229]
[1738881356212,0.00526582,96632.0,96631.0,0.155229]
[1738881356412,0.0001068,96632.0,96631.0,0.157229]
[1738881356635,0.0001068,96632.0,96631.0,0.155229]
[1738881356842,0.00526582,96632.0,96631.0,0.155229]
[1738881357046,0.0001068,96632.0,96631.0,0.157229]
[1738881357649,0.00526582,96632.0,96631.0,0.157229]
[1738881357899,0.0001068,96632.0,96631.0,0.157229]
[1738881358314,0.0001068,96632.0,96631.0,0.002]
[1738881358465,0.1553348,96632.0,96631.0,0.002]
[1738881358666,0.16049382,96632.0,96631.0,0.002]
[1738881358872,0.155253,96616.0,96614.0,0.0001067]
[1738881359069,0.155255,96615.0,96614.0,0.0001067]
[1738881359277,0.16037892,96615.0,96614.0,0.0001067]
[1738881359811,0.16037892,96615.0,96614.0,0.01209392]
[1738881360320,0.16037892,96615.0,96614.0,0.01709392]
[1738881360553,0.16037892,96615.0,96614.0,0.01209392]
[1738881360776,0.16037892,96615.0,96614.0,0.01709392]
[1738881360906,0.16037892,96615.0,96614.0,0.0051067]
[1738881361745,0.00512392,96615.0,96614.0,0.1613637]
[1738881362075,0.00512392,96615.0,96614.0,0.0061067]
[1738881362383,0.00481196,96615.0,96614.0,0.26386735]
[1738881362760,0.206926,96653.0,96631.0,0.155229]
[1738881362911,0.15,96639.0,96631.0,0.155229]
[1738881363587,0.206934,96649.0,96631.0,0.155229]
[1738881363720,0.00022428,96658.0,96631.0,0.155229]
[1738881363721,0.155195,96653.0,96631.0,0.155229]
[1738881363927,0.155195,96653.0,96631.0,0.15626374]
[1738881364149,0.00022428,96658.0,96631.0,0.15626374]
[1738881364150,0.0011068,96632.0,96631.0,0.25876739]
[1738881364326,0.0011068,96632.0,96631.0,0.28073265]
[1738881364883,0.0001068,96632.0,96631.0,0.28073265]
[1738881365171,0.0011068,96632.0,96631.0,0.31192022]
[1738881365516,0.0001068,96632.0,96631.0,0.37922263]
[1738881365759,0.0001068,96632.0,96631.0,0.32159747]
[1738881365962,0.0001068,96632.0,96631.0,0.32659747]
[1738881367063,0.0001068,96632.0,96631.0,0.32759747]
[1738881367261,0.09220811,96657.0,96651.0,0.155197]
[1738881367475,0.0062859,96656.0,96640.0,0.12978078]
[1738881367675,0.0062859,96656.0,96651.0,0.155196]
[1738881367897,0.0062859,96656.0,96652.0,0.01935522]
[1738881368314,0.0062859,96656.0,96654.0,0.155191]
[1738881368491,0.0062859,96656.0,96653.0,0.155193]
[1738881369089,0.0062859,96656.0,96655.0,0.01935522]
[1738881370112,0.0062859,96656.0,96655.0,0.17454622]
[1738881370328,0.0062859,96656.0,96655.0,0.18422347]
[1738881371568,0.00013851,96657.0,96656.0,0.155189]
[1738881372252,0.00013851,96657.0,96656.0,0.17454422]
[1738881372453,0.00013851,96657.0,96656.0,0.01935522]
[1738881372656,0.00013851,96657.0,96656.0,0.17454422]
[1738881373635,0.00013851,96657.0,96656.0,0.01935522]
[1738881373836,0.00013851,96657.0,96656.0,0.17454422]
[1738881374967,0.00664967,96657.0,96656.0,0.17454422]
[1738881375169,0.00013851,96657.0,96656.0,0.17454422]
[1738881376984,0.00013851,96657.0,96656.0,0.32678238]
[1738881377188,0.00013851,96657.0,96656.0,0.38810838]
[1738881377360,0.00013851,96657.0,96656.0,0.32574787]
[1738881378726,0.00036279,96657.0,96656.0,0.32974787]
[1738881379495,0.00036279,96657.0,96656.0,0.46527685]
[1738881379776,0.00036279,96657.0,96656.0,0.78937685]
[1738881380344,0.00036279,96657.0,96656.0,0.82158389]
[1738881380622,0.00036279,96657.0,96656.0,0.84276907]
[1738881380841,0.00036279,96657.0,96656.0,0.99276907]
[1738881381041,0.00036279,96657.0,96656.0,0.99376907]
[1738881381251,0.0004245,96669.0,96668.0,0.45307]
[1738881381449,0.0001069,96682.0,96679.0,0.178152]
[1738881381674,0.00027064,96680.0,96679.0,0.31286269]
[1738881381876,0.00027064,96680.0,96679.0,0.34414896]
[1738881382315,0.00027064,96680.0,96679.0,0.39284896]
[1738881382501,0.00022408,96714.0,96700.0,0.155118]
[1738881382718,0.09225425,96701.0,96700.0,0.155118]
[1738881383037,0.09885282,96701.0,96700.0,0.29381685]
[1738881383246,0.09885282,96701.0,96700.0,0.25762165]
[1738881383531,0.09225425,96701.0,96700.0,0.25762165]
[1738881384095,0.09225425,96701.0,96700.0,0.30790585]
[1738881384477,0.09225425,96701.0,96700.0,0.35670585]
[1738881385013,4.614e-05,96701.0,96700.0,0.35670585]
[1738881385214,4.614e-05,96701.0,96700.0,0.4526768]
[1738881385595,4.614e-05,96701.0,96700.0,0.36850666]
[1738881385829,4.614e-05,96701.0,96700.0,0.37250666]
[1738881386452,4.614e-05,96701.0,96700.0,0.11488501]
[1738881386614,0.00667363,96701.0,96700.0,0.06208501]
[1738881387080,4.614e-05,96701.0,96700.0,0.06708501]
[1738881387269,0.00665704,96701.0,96700.0,0.06308501]
[1738881387469,0.00665704,96701.0,96700.0,0.0512842]
[1738881388431,0.155118,96700.0,96698.0,0.01124781]
[1738881388641,0.15513,96693.0,96692.0,0.01935522]
[1738881389051,0.16173033,96693.0,96692.0,0.01935522]
[1738881389882,0.24463033,96693.0,96692.0,0.02535522]
[1738881390090,0.15,96692.0,96681.0,0.08301166]
[1738881390234,0.155147,96682.0,96681.0,0.08301166]
[1738881390439,0.31170846,96682.0,96681.0,0.08301166]
[1738881390643,0.31170846,96682.0,96671.0,0.08301166]
[1738881390644,0.305163,96672.0,96671.0,0.08301166]
[1738881390854,0.155186,96658.0,96634.0,0.155224]
[1738881391046,0.155186,96658.0,96633.0,0.0456]
[1738881391047,0.31170196,96658.0,96643.0,0.011352]
[1738881391249,0.15521,96643.0,96635.0,0.00103459]
[1738881391501,0.15521,96643.0,96632.0,0.08323594]
[1738881391502,0.16174452,96643.0,96632.0,0.08323594]
[1738881392013,0.155223,96635.0,96632.0,0.08323594]
[1738881392235,0.206949,96642.0,96632.0,0.08328208]
[1738881392236,0.155226,96633.0,96632.0,0.08328208]
[1738881392560,0.00651716,96633.0,96632.0,0.00027042]
[1738881392760,0.00651716,96633.0,96632.0,0.15549742]
[1738881392980,0.155214,96641.0,96633.0,0.155224]
[1738881393409,0.00651715,96640.0,96634.0,0.155224]
[1738881393612,0.00651715,96640.0,96633.0,0.206968]
[1738881393848,0.0831,96671.0,96632.0,0.00427042]
[1738881394175,0.00651715,96639.0,96638.0,0.155218]
[1738881394308,0.00651715,96639.0,96638.0,0.25772165]
[1738881394923,0.15,96658.0,96638.0,0.10250365]
[1738881395121,0.305186,96658.0,96651.0,0.155197]
[1738881395443,0.00649663,96657.0,96652.0,0.155194]
[1738881395851,0.00649663,96657.0,96649.0,0.206932]
[1738881396066,0.15,96658.0,96652.0,0.155195]
[1738881396268,0.00582784,96657.0,96652.0,0.155195]
[1738881396631,0.00582784,96657.0,96650.0,0.206932]
[1738881396826,0.00582784,96657.0,96653.0,0.155193]
[1738881397253,0.206864,96682.0,96647.0,0.12978078]
[1738881397457,0.155168,96670.0,96662.0,0.155179]
[1738881397693,0.00582517,96669.0,96662.0,0.155179]
[1738881398025,0.00582517,96669.0,96651.0,0.20693]
[1738881398158,0.00582517,96669.0,96652.0,0.18551531]
[1738881398361,0.00582517,96669.0,96667.0,0.155171]
[1738881398576,0.206849,96689.0,96653.0,0.06704244]
[1738881398577,0.155158,96676.0,96668.0,0.155168]
[1738881398786,0.15,96687.0,96667.0,4.614e-05]
[1738881398986,0.00585561,96675.0,96671.0,0.15463033]
[1738881399221,0.206837,96695.0,96667.0,4.614e-05]
[1738881399421,0.00585826,96674.0,96673.0,0.155162]
[1738881399621,0.206802,96711.0,96671.0,0.206885]
[1738881399622,0.0785,96700.0,96671.0,0.206885]
[1738881399965,0.155137,96689.0,96681.0,0.155148]
[1738881400284,0.0058799,96688.0,96681.0,0.155148]
[1738881400680,0.0058799,96688.0,96682.0,0.155147]
[1738881400912,0.305136,96690.0,96682.0,0.155147]
[1738881400913,0.155137,96689.0,96682.0,0.155147]
[1738881401107,0.00588255,96687.0,96682.0,0.155147]
[1738881401312,0.155137,96689.0,96682.0,0.155147]
[1738881401536,0.00588123,96686.0,96682.0,0.155147]
[1738881401739,0.155137,96689.0,96682.0,0.155147]
[1738881401915,0.00587991,96685.0,96682.0,0.155147]
[1738881402141,0.155137,96689.0,96682.0,0.155147]
[1738881402486,0.00587858,96684.0,96682.0,0.155147]
[1738881402687,0.155137,96689.0,96682.0,0.15537128]
[1738881402890,0.00587726,96683.0,96682.0,0.00022428]
[1738881403139,0.155139,96687.0,96682.0,0.00022428]
[1738881403634,0.00588123,96686.0,96682.0,0.00022428]
[1738881405565,0.16102223,96686.0,96682.0,0.00022428]
[1738881405812,0.155141,96686.0,96682.0,0.00022428]
[1738881406031,0.00587991,96685.0,96682.0,0.00022428]
[1738881406993,0.155137,96689.0,96682.0,0.00022428]
[1738881407223,0.00587991,96684.0,96683.0,0.25764965]
[1738881407439,0.20703728,96706.0,96692.0,0.155131]
[1738881407687,0.00022428,96706.0,96692.0,0.15616515]
[1738881409017,0.00022428,96706.0,96692.0,0.34391002]
[1738881409223,0.00022428,96706.0,96692.0,0.34287587]
[1738881409419,0.00022428,96706.0,96692.0,0.34987587]
[1738881410446,0.00022428,96706.0,96692.0,0.26563465]
[1738881410813,0.00022428,96706.0,96692.0,0.25763465]
[1738881411007,0.00022428,96706.0,96692.0,0.26163465]
[1738881411229,0.00022428,96706.0,96692.0,0.26263465]
[1738881411434,0.00022428,96706.0,96692.0,0.25863465]
[1738881411680,0.00022428,96706.0,96692.0,0.26263465]
[1738881411877,0.00022428,96706.0,96692.0,0.26163465]
[1738881412466,0.00022428,96706.0,96692.0,0.25763465]
[1738881412667,0.00022428,96706.0,96692.0,0.26905504]
[1738881413212,0.155112,96705.0,96692.0,0.26905504]
[1738881413408,0.15533328,96706.0,96692.0,0.27005504]
[1738881413614,0.206819,96703.0,96692.0,0.27005504]
[1738881413822,0.155117,96702.0,96692.0,0.27405504]
[1738881414238,0.155117,96702.0,96692.0,0.26905504]
[1738881414434,0.155117,96702.0,96692.0,0.27405504]
[1738881414591,0.00022428,96706.0,96692.0,0.27505504]
[1738881414796,0.155114,96703.0,96692.0,0.27005504]
[1738881414994,0.155114,96703.0,96692.0,0.27405504]
[1738881415197,0.155114,96703.0,96692.0,0.27305504]
[1738881416218,0.00022428,96706.0,96692.0,0.27305504]
[1738881416424,0.155116,96702.0,96692.0,0.27305504]
[1738881416594,0.00022428,96706.0,96692.0,0.27405504]